fUST/lending_fUST_20240727
["ID","MTS","AMOUNT","RATE_DAILY","PERIOD"]
[333275084,1722013846034,-500.0,0.00013972,2]
[333275085,1722013846045,-500.0,0.00013972,2]
[333275086,1722013846055,-500.0,0.00013972,2]
[333275087,1722013846064,-500.0,0.00013972,2]
[333275088,1722013846073,-500.0,0.00013972,2]
[333275089,1722013846083,-550.75,0.00013972,2]
[333275090,1722013846093,-512.64,0.00013972,2]
[333275091,1722013846102,-500.0,0.00013972,2]
[333275092,1722013846111,-500.0,0.00013972,2]
[333275093,1722013846121,-500.0,0.00013972,2]
[333275094,1722013846132,-151.0,0.00013972,2]
[333275095,1722013846143,-500.0,0.00013972,2]
[333275096,1722013846153,-500.0,0.00013972,2]
[333275097,1722013846162,-500.0,0.00013972,2]
[333275098,1722013846171,-323.22216477,0.00013972,2]
[333275100,1722013846183,-504.14963923,0.00013972,2]
[333275101,1722013846193,-500.0,0.00013972,2]
[333275102,1722013846204,-500.0,0.00013972,2]
[333275103,1722013846213,-500.0,0.00013972,2]
[333275104,1722013846223,-504.72,0.00013972,2]
[333275105,1722013846233,-500.0,0.00013972,2]
[333275107,1722013846242,-151.0,0.00013972,2]
[333275108,1722013846252,-151.0,0.00013972,2]
[333275110,1722013846262,-500.0,0.00013972,2]
[333275111,1722013846272,-502.08201003,0.00013972,2]
[333275113,1722013846281,-500.0,0.00013972,2]
[333275115,1722013846290,-500.0,0.00013972,2]
[333275118,1722013846300,-151.0,0.00013972,2]
[333275119,1722013846310,-801.343558,0.00013972,2]
[333275121,1722013846319,-801.343558,0.00013972,2]
[333275123,1722013846327,-1008.59,0.00013972,2]
[333275125,1722013846338,-1519.0,0.00013972,2]
[333275126,1722013846347,-624.209607,0.00013972,2]
[333275127,1722013846357,-624.209607,0.00013972,2]
[333275128,1722013846367,-5471.36,0.00013972,2]
[333275129,1722013846377,-960.188475,0.00013972,2]
[333275130,1722013846386,-1217.16,0.00013972,2]
[333275131,1722013846395,-960.188475,0.00013972,2]
[333275133,1722013846405,-570.38,0.00013972,2]
[333275135,1722013846414,-891.66,0.00013972,2]
[333275137,1722013846424,-500.0,0.00013972,2]
[333275139,1722013846435,-500.0,0.00013972,2]
[333275141,1722013846445,-500.0,0.00013972,2]
[333275143,1722013846454,-500.0,0.00013972,2]
[333275145,1722013846464,-500.0,0.00013972,2]
[333275146,1722013846474,-500.0,0.00013972,2]
[333275147,1722013846483,-803.9,0.00013972,2]
[333275148,1722013846493,-500.0,0.00013972,2]
[333275149,1722013846502,-500.0,0.00013972,2]
[333275150,1722013846511,-500.0,0.00013972,2]
[333275151,1722013846521,-719.02,0.00013972,2]
[333275152,1722013846530,-435.17128086,0.00013972,2]
[333275153,1722013846539,-500.0,0.00013972,2]
[333275154,1722013846548,-500.0,0.00013972,2]
[333275155,1722013846557,-500.0,0.00013972,2]
[333275156,1722013846567,-151.0,0.00013972,2]
[333275157,1722013846576,-611.84,0.00013972,2]
[333275158,1722013846591,-500.0,0.00013972,2]
[333275161,1722013846600,-500.0,0.00013972,2]
[333275163,1722013846612,-696.33,0.00013972,2]
[333275165,1722013846622,-4988.99,0.00013972,2]
[333275166,1722013846631,-429.51,0.00013972,2]
[333275167,1722013846641,-500.0,0.00013972,2]
[333275168,1722013846650,-500.0,0.00013972,2]
[333275169,1722013846661,-500.0,0.00013972,2]
[333275170,1722013846671,-511.09747774,0.00013972,2]
[333275171,1722013846680,-519.25,0.00013972,2]
[333275172,1722013846690,-500.0,0.00013972,2]
[333275173,1722013846700,-1876.22,0.00013972,2]
[333275174,1722013846709,-1724.63,0.00013972,2]
[333275175,1722013846720,-500.0,0.00013972,2]
[333275176,1722013846730,-500.0,0.00013972,2]
[333275177,1722013846742,-500.0,0.00013972,2]
[333275178,1722013846752,-500.0,0.00013972,2]
[333275179,1722013846762,-151.0,0.00013972,2]
[333275180,1722013846773,-1646.68,0.00013972,2]
[333275181,1722013846784,-631.08,0.00013972,2]
[333275182,1722013846794,-500.0,0.00013972,2]
[333275183,1722013846803,-505.68830696,0.00013972,2]
[333275184,1722013846812,-1041.76,0.00013972,2]
[333275185,1722013846821,-616.32926765,0.00013972,2]
[333275186,1722013846831,-757.57,0.00013972,2]
[333275187,1722013846840,-500.0,0.00013972,2]
[333275188,1722013846849,-507.03,0.00013972,2]
[333275189,1722013846859,-500.0,0.00013972,2]
[333275190,1722013846868,-500.0,0.00013972,2]
[333275191,1722013846878,-3569.74,0.00013972,2]
[333275192,1722013846887,-500.0,0.00013972,2]
[333275194,1722013846897,-3040.98,0.00013972,2]
[333275195,1722013846907,-500.0,0.00013972,2]
[333275196,1722013846918,-509.82,0.00013972,2]
[333275197,1722013846930,-500.0,0.00013972,2]
[333275198,1722013846940,-211.71623,0.00013972,2]
[333275199,1722013846952,-512.38206662,0.00013972,2]
[333275200,1722013846963,-500.0,0.00013972,2]
[333275201,1722013846973,-698.58,0.00013972,2]
[333275202,1722013846983,-896.92,0.00013972,2]
[333275203,1722013846993,-211.71623,0.00013972,2]
[333275204,1722013847003,-590.18,0.00013972,2]
[333275205,1722013847013,-1446.14,0.00013972,2]
[333275206,1722013847022,-558.32,0.00013972,2]
[333275207,1722013847032,-500.0,0.00013972,2]
[333275208,1722013847042,-763.15,0.00013972,2]
[333275209,1722013847051,-500.0,0.00013972,2]
[333275210,1722013847060,-500.0,0.00013972,2]
[333275211,1722013847070,-642.72,0.00013972,2]
[333275212,1722013847079,-151.0,0.00013972,2]
[333275213,1722013847088,-151.0,0.00013972,2]
[333275214,1722013847097,-500.0,0.00013972,2]
[333275215,1722013847106,-500.0,0.00013972,2]
[333275216,1722013847117,-820.9,0.00013972,2]
[333275217,1722013847126,-500.0,0.00013972,2]
[333275218,1722013847135,-500.0,0.00013972,2]
[333275219,1722013847144,-500.0,0.00013972,2]
[333275220,1722013847154,-815.3,0.00013972,2]
[333275221,1722013847163,-500.0,0.00013972,2]
[333275222,1722013847173,-1466.16,0.00013972,2]
[333275223,1722013847183,-505.83,0.00013972,2]
[333275224,1722013847192,-151.0,0.00013972,2]
[333275225,1722013847202,-500.0,0.00013972,2]
[333275226,1722013847211,-500.0,0.00013972,2]
[333275227,1722013847220,-500.0,0.00013972,2]
[333275228,1722013847230,-506.44,0.00013972,2]
[333275229,1722013847239,-516.77693941,0.00013972,2]
[333275230,1722013847249,-500.0,0.00013972,2]
[333275231,1722013847259,-500.0,0.00013972,2]
[333275232,1722013847269,-500.0,0.00013972,2]
[333275233,1722013847278,-500.0,0.00013972,2]
[333275234,1722013847289,-500.0,0.00013972,2]
[333275235,1722013847300,-500.0,0.00013972,2]
[333275236,1722013847310,-649.02039044,0.00013972,2]
[333275237,1722013847321,-500.0,0.00013972,2]
[333275238,1722013847332,-1757.92,0.00013972,2]
[333275239,1722013847343,-500.0,0.00013972,2]
[333275240,1722013847353,-231.75257628,0.00013972,2]
[333275242,1722013847858,-268.24742372,0.00013972,2]
[333275243,1722013847869,-32.53978628,0.00013972,2]
[333275244,1722013891206,263.5681095,0.00013,2]
[333275245,1722013928001,263.5681095,0.00013,2]
[333275246,1722013939281,1848.344581,0.00013,2]
[333275247,1722013949954,-2850.0,0.000145,30]
[333275248,1722013950188,-163.29,0.00015,31]
[333275249,1722013950216,-163.29,0.00015,31]
[333275250,1722013950244,-163.29,0.00015,31]
[333275251,1722013950272,-163.29,0.00015,31]
[333275252,1722013950298,-163.29,0.00015,31]
[333275253,1722013950432,-163.29,0.000179,31]
[333275254,1722013950456,-163.29,0.000179,31]
[333275255,1722013950601,-150.68356451,0.00018881,30]
[333275256,1722013950633,-849.31643549,0.00019,19]
[333275257,1722013950791,-1066.97,0.0002,30]
[333275283,1722014260768,8518.58608966,0.00025,120]
[333275284,1722014337405,154.68290005,9.999e-05,4]
[333275301,1722014429420,154.68290005,9.999e-05,4]
[333275302,1722014527448,165.23419122,9.999e-05,4]
[333275305,1722014591747,11695.03191424,9.999e-05,3]
[333275307,1722014685332,9745.85992853,9.999e-05,3]
[333275309,1722014785158,9745.85992853,9.999e-05,3]
[333275310,1722014798161,-270.731828,9.999e-05,2]
[333275311,1722014836802,-150.0,0.000146,30]
[333275312,1722014836850,-163.38,0.000153,31]
[333275313,1722014836880,-163.38,0.000153,31]
[333275314,1722014836978,-163.38,0.000181,31]
[333275315,1722014837184,-97.79857446,0.0002,30]
[333275316,1722014837385,-640.14,0.0002,30]
[333275317,1722014837424,-163.38,0.000209,31]
[333275318,1722014837645,-1205.46851612,0.00022,30]
[333275319,1722014837916,-2414.48898615,0.00022,30]
[333275320,1722014837943,-158.294,0.00023,30]
[333275321,1722014837972,-1205.46851612,0.00023128,30]
[333275322,1722014838008,-163.38,0.000238,31]
[333275323,1722014838036,-4115.26578304,0.00024,30]
[333275324,1722014844104,-163.8969488,9.999e-05,2]
[333275325,1722014844125,-1387.61170996,0.0001212,3]
[333275332,1722014904136,163.81,0.000153,31]
[333275333,1722014946183,-1989.47294262,0.000125,2]
[333275334,1722014951123,-1970.25852038,0.000125,2]
[333275335,1722014957119,-300.0,0.00012999,2]
[333275336,1722014957140,-5185.44879796,0.00013,2]
[333275376,1722015031992,-492.50185634,0.00013,2]
[333275377,1722015032004,-634.76243421,0.00013,2]
[333275378,1722015032021,-101.66945628,0.00013,2]
[333275379,1722015032030,-157.334295,0.00013425,2]
[333275380,1722015032041,-1516.26642009,0.00013598,2]
[333275381,1722015032052,-444.3189809,0.000136,2]
[333275382,1722015032063,-150.112233,0.000136,2]
[333275383,1722015032073,-4588.00544464,0.00013688,2]
[333275424,1722015038100,-375589.20468136,0.00013688,2]
[333275426,1722015038109,-2441.69,0.00013698,2]
[333275428,1722015038119,-2441.69,0.00013698,2]
[333275430,1722015038128,-2441.69,0.00013698,2]
[333275431,1722015038137,-2441.69,0.00013698,2]
[333275432,1722015038146,-2441.69,0.00013698,2]
[333275433,1722015038156,-2441.69,0.00013698,2]
[333275434,1722015038165,-2441.69,0.00013698,2]
[333275437,1722015038175,-2441.69,0.00013698,2]
[333275440,1722015038185,-2441.69,0.00013698,2]
[333275443,1722015038195,-2441.69,0.00013698,2]
[333275445,1722015038204,-2441.69,0.00013698,2]
[333275446,1722015038214,-2441.69,0.00013698,2]
[333275447,1722015038224,-2441.69,0.00013698,2]
[333275449,1722015038233,-2441.69,0.00013698,2]
[333275452,1722015038243,-2441.69,0.00013698,2]
[333275454,1722015038252,-2441.69,0.00013698,2]
[333275456,1722015038262,-2441.69,0.00013698,2]
[333275458,1722015038271,-2441.69,0.00013698,2]
[333275460,1722015038281,-2441.69,0.00013698,2]
[333275461,1722015038290,-2441.69,0.00013698,2]
[333275463,1722015038300,-2441.69,0.00013698,2]
[333275465,1722015038309,-2441.69,0.00013698,2]
[333275467,1722015038319,-2441.69,0.00013698,2]
[333275469,1722015038328,-2441.8062902,0.00013698,2]
[333275471,1722015038338,-2876.46722793,0.00013698,2]
[333275472,1722015038348,-500.0,0.00013698,2]
[333275473,1722015038358,-500.0,0.00013698,2]
[333275474,1722015038367,-500.0,0.00013698,2]
[333275475,1722015038377,-500.0,0.00013698,2]
[333275476,1722015038386,-502.16659632,0.00013698,2]
[333275477,1722015038396,-500.0,0.00013698,2]
[333275478,1722015038405,-500.0,0.00013698,2]
[333275479,1722015038415,-500.0,0.00013698,2]
[333275480,1722015038424,-500.0,0.00013698,2]
[333275481,1722015038434,-592.80057666,0.00013698,2]
[333275482,1722015038444,-500.0,0.00013698,2]
[333275483,1722015038453,-500.0,0.00013698,2]
[333275484,1722015038463,-500.0,0.00013698,2]
[333275485,1722015038472,-500.0,0.00013698,2]
[333275486,1722015038482,-286.84144673,0.00013698,2]
[333275487,1722015038491,-500.0,0.00013698,2]
[333275488,1722015038500,-500.0,0.00013698,2]
[333275489,1722015038510,-500.0,0.00013698,2]
[333275490,1722015038519,-500.0,0.00013698,2]
[333275491,1722015038529,-500.0,0.00013698,2]
[333275492,1722015038538,-504.3600509,0.00013698,2]
[333275493,1722015038548,-500.0,0.00013698,2]
[333275494,1722015038557,-193.38715633,0.00013698,2]
[333275495,1722015038567,-500.0,0.00013698,2]
[333275496,1722015038576,-500.8979793,0.00013698,2]
[333275497,1722015038585,-255.70376863,0.00013698,2]
[333275498,1722015038595,-150.0,0.00013698,2]
[333275499,1722015038604,-209.98036426,0.00013698,2]
[333275500,1722015038614,-500.0,0.00013698,2]
[333275501,1722015038623,-500.0,0.00013698,2]
[333275502,1722015038632,-502.8022064,0.00013698,2]
[333275503,1722015038642,-500.0,0.00013698,2]
[333275504,1722015038651,-500.0,0.00013698,2]
[333275505,1722015038660,-500.0,0.00013698,2]
[333275506,1722015038670,-500.0,0.00013698,2]
[333275507,1722015038679,-500.0,0.00013698,2]
[333275508,1722015038689,-506.23636502,0.00013698,2]
[333275509,1722015038699,-524.65330085,0.00013698,2]
[333275510,1722015038708,-500.0,0.00013698,2]
[333275511,1722015038717,-500.0,0.00013698,2]
[333275512,1722015038727,-497.17801363,0.00013698,2]
[333275513,1722015038736,-500.0,0.00013698,2]
[333275514,1722015038746,-500.0,0.00013698,2]
[333275515,1722015038755,-500.0,0.00013698,2]
[333275516,1722015038764,-500.0,0.00013698,2]
[333275517,1722015038773,-506.78065138,0.00013698,2]
[333275518,1722015038783,-500.0,0.00013698,2]
[333275519,1722015038792,-500.0,0.00013698,2]
[333275520,1722015038801,-500.0,0.00013698,2]
[333275521,1722015038811,-500.0,0.00013698,2]
[333275522,1722015038820,-500.0,0.00013698,2]
[333275523,1722015038829,-500.0,0.00013698,2]
[333275524,1722015038839,-500.0,0.00013698,2]
[333275525,1722015038849,-500.0,0.00013698,2]
[333275526,1722015038858,-500.0,0.00013698,2]
[333275527,1722015038868,-504.61591989,0.00013698,2]
[333275528,1722015038877,-502.14090317,0.00013698,2]
[333275529,1722015038886,-881.59,0.00013698,2]
[333275530,1722015038895,-503.01048796,0.00013698,2]
[333275531,1722015038905,-502.45465813,0.00013698,2]
[333275532,1722015038915,-500.0,0.00013698,2]
[333275533,1722015038924,-500.0,0.00013698,2]
[333275534,1722015038934,-500.0,0.00013698,2]
[333275535,1722015038944,-500.0,0.00013698,2]
[333275536,1722015038955,-435.55488251,0.00013698,2]
[333275537,1722015038965,-500.0,0.00013698,2]
[333275538,1722015038974,-500.0,0.00013698,2]
[333275539,1722015038983,-500.0,0.00013698,2]
[333275540,1722015038993,-500.0,0.00013698,2]
[333275541,1722015039003,-500.0,0.00013698,2]
[333275542,1722015039013,-500.0,0.00013698,2]
[333275543,1722015039026,-500.0,0.00013698,2]
[333275544,1722015039035,-500.0,0.00013698,2]
[333275545,1722015039044,-500.0,0.00013698,2]
[333275546,1722015039055,-416.11006723,0.00013698,2]
[333275547,1722015039064,-500.0,0.00013698,2]
[333275548,1722015039073,-500.0,0.00013698,2]
[333275549,1722015039083,-294.56022965,0.00013698,2]
[333275550,1722015039094,-500.0,0.00013698,2]
[333275551,1722015039103,-500.0,0.00013698,2]
[333275552,1722015039113,-500.0,0.00013698,2]
[333275553,1722015039123,-501.30856067,0.00013698,2]
[333275554,1722015039133,-500.0,0.00013698,2]
[333275555,1722015039142,-500.0,0.00013698,2]
[333275556,1722015039152,-500.0,0.00013698,2]
[333275557,1722015039161,-500.0,0.00013698,2]
[333275558,1722015039171,-500.0,0.00013698,2]
[333275559,1722015039181,-489.71425071,0.00013698,2]
[333275560,1722015039192,-596.1,0.00013698,2]
[333275561,1722015039202,-500.0,0.00013698,2]
[333275562,1722015039212,-500.0,0.00013698,2]
[333275563,1722015039222,-736.52,0.00013698,2]
[333275564,1722015039231,-502.26495527,0.00013698,2]
[333275565,1722015039241,-500.98295585,0.00013698,2]
[333275566,1722015039250,-500.0,0.00013698,2]
[333275567,1722015039260,-500.0,0.00013698,2]
[333275568,1722015039271,-500.0,0.00013698,2]
[333275569,1722015039281,-500.0,0.00013698,2]
[333275570,1722015039290,-500.0,0.00013698,2]
[333275571,1722015039300,-500.0,0.00013698,2]
[333275572,1722015039309,-500.0,0.00013698,2]
[333275573,1722015039318,-500.0,0.00013698,2]
[333275574,1722015039327,-500.0,0.00013698,2]
[333275575,1722015039337,-502.28363194,0.00013698,2]
[333275576,1722015039348,-500.0,0.00013698,2]
[333275577,1722015039358,-502.76179262,0.00013698,2]
[333275579,1722015039368,-501.00313867,0.00013698,2]
[333275580,1722015039378,-500.0,0.00013698,2]
[333275581,1722015039388,-500.0,0.00013698,2]
[333275582,1722015039397,-550.54050196,0.00013698,2]
[333275583,1722015039407,-500.0,0.00013698,2]
[333275584,1722015039418,-640.54637123,0.00013698,2]
[333275585,1722015039427,-500.0,0.00013698,2]
[333275586,1722015039437,-504.00163031,0.00013698,2]
[333275587,1722015039447,-500.0,0.00013698,2]
[333275588,1722015039458,-500.0,0.00013698,2]
[333275589,1722015039467,-500.0,0.00013698,2]
[333275590,1722015039477,-500.0,0.00013698,2]
[333275591,1722015039487,-500.0,0.00013698,2]
[333275592,1722015039496,-500.0,0.00013698,2]
[333275593,1722015039507,-500.0,0.00013698,2]
[333275594,1722015039516,-500.0,0.00013698,2]
[333275595,1722015039526,-500.0,0.00013698,2]
[333275596,1722015039535,-500.0,0.00013698,2]
[333275597,1722015039545,-500.0,0.00013698,2]
[333275598,1722015039554,-662.45,0.00013698,2]
[333275599,1722015039564,-223.1229855,0.00013698,2]
[333275600,1722015039574,-500.0,0.00013698,2]
[333275601,1722015039584,-500.0,0.00013698,2]
[333275602,1722015039594,-503.636417,0.00013698,2]
[333275603,1722015039603,-500.0,0.00013698,2]
[333275604,1722015039613,-770.49,0.00013698,2]
[333275605,1722015039623,-500.0,0.00013698,2]
[333275606,1722015039633,-500.0,0.00013698,2]
[333275607,1722015039643,-457.91919366,0.00013698,2]
[333275608,1722015039653,-500.0,0.00013698,2]
[333275609,1722015039663,-671.98,0.00013698,2]
[333275611,1722015039674,-500.0,0.00013698,2]
[333275612,1722015039684,-950.24,0.00013698,2]
[333275613,1722015039693,-728.9,0.00013698,2]
[333275614,1722015039702,-500.0,0.00013698,2]
[333275615,1722015039712,-500.0,0.00013698,2]
[333275616,1722015039721,-512.0384615,0.00013698,2]
[333275617,1722015039731,-500.0,0.00013698,2]
[333275619,1722015039741,-503.8757368,0.00013698,2]
[333275620,1722015039751,-500.0,0.00013698,2]
[333275621,1722015039760,-500.0,0.00013698,2]
[333275622,1722015039770,-500.0,0.00013698,2]
[333275623,1722015039780,-302.55066996,0.00013698,2]
[333275624,1722015039790,-500.0,0.00013698,2]
[333275625,1722015039799,-505.60284264,0.00013698,2]
[333275626,1722015039809,-500.0,0.00013698,2]
[333275627,1722015039819,-500.0,0.00013698,2]
[333275628,1722015039829,-500.0,0.00013698,2]
[333275629,1722015039838,-500.0,0.00013698,2]
[333275630,1722015039848,-268.45224502,0.00013698,2]
[333275631,1722015039858,-508.95810535,0.00013698,2]
[333275632,1722015039868,-500.0,0.00013698,2]
[333275633,1722015039878,-500.63549699,0.00013698,2]
[333275634,1722015039887,-500.0,0.00013698,2]
[333275636,1722015039896,-500.0,0.00013698,2]
[333275638,1722015039906,-500.0,0.00013698,2]
[333275640,1722015039915,-500.0,0.00013698,2]
[333275641,1722015039925,-500.0,0.00013698,2]
[333275642,1722015039936,-500.0,0.00013698,2]
[333275643,1722015039946,-500.0,0.00013698,2]
[333275644,1722015039956,-500.0,0.00013698,2]
[333275645,1722015039966,-500.0,0.00013698,2]
[333275647,1722015039976,-500.0,0.00013698,2]
[333275648,1722015039985,-500.0,0.00013698,2]
[333275650,1722015039995,-500.0,0.00013698,2]
[333275652,1722015040005,-500.0,0.00013698,2]
[333275654,1722015040015,-500.0,0.00013698,2]
[333275655,1722015040029,-500.0,0.00013698,2]
[333275656,1722015040039,-500.0,0.00013698,2]
[333275657,1722015040049,-540.08,0.00013698,2]
[333275658,1722015040059,-840.77,0.00013698,2]
[333275660,1722015040070,-500.0,0.00013698,2]
[333275661,1722015040081,-500.0,0.00013698,2]
[333275662,1722015040092,-500.0,0.00013698,2]
[333275663,1722015040105,-616.77,0.00013698,2]
[333275664,1722015040116,-810.76,0.00013698,2]
[333275665,1722015040125,-500.0,0.00013698,2]
[333275666,1722015040136,-500.0,0.00013698,2]
[333275667,1722015040146,-501.53796063,0.00013698,2]
[333275668,1722015040156,-500.0,0.00013698,2]
[333275669,1722015040166,-500.0,0.00013698,2]
[333275670,1722015040175,-1028.1,0.00013698,2]
[333275671,1722015040185,-500.0,0.00013698,2]
[333275672,1722015040195,-500.0,0.00013698,2]
[333275673,1722015040206,-500.0,0.00013698,2]
[333275674,1722015040216,-500.0,0.00013698,2]
[333275675,1722015040228,-500.0,0.00013698,2]
[333275676,1722015040238,-500.0,0.00013698,2]
[333275677,1722015040250,-500.0,0.00013698,2]
[333275678,1722015040261,-500.0,0.00013698,2]
[333275679,1722015040270,-500.0,0.00013698,2]
[333275680,1722015040280,-500.0,0.00013698,2]
[333275681,1722015040290,-500.0,0.00013698,2]
[333275682,1722015040299,-500.0,0.00013698,2]
[333275683,1722015040309,-500.0,0.00013698,2]
[333275684,1722015040320,-500.0,0.00013698,2]
[333275685,1722015040329,-500.0,0.00013698,2]
[333275686,1722015040338,-1487.11,0.00013698,2]
[333275687,1722015040351,-500.0,0.00013698,2]
[333275688,1722015040360,-500.0,0.00013698,2]
[333275689,1722015040369,-393.76072345,0.00013698,2]
[333275690,1722015040378,-500.0,0.00013698,2]
[333275691,1722015040387,-522.36028457,0.00013698,2]
[333275692,1722015040396,-500.0,0.00013698,2]
[333275693,1722015040407,-500.0,0.00013698,2]
[333275694,1722015040416,-500.0,0.00013698,2]
[333275695,1722015040425,-504.78094596,0.00013698,2]
[333275696,1722015040435,-562.6930076,0.00013698,2]
[333275697,1722015040444,-500.0,0.00013698,2]
[333275698,1722015040610,-500.0,0.00013698,2]
[333275699,1722015040620,-513.00394085,0.00013698,2]
[333275700,1722015040629,-500.0,0.00013698,2]
[333275701,1722015040638,-500.0,0.00013698,2]
[333275702,1722015040648,-500.0,0.00013698,2]
[333275703,1722015040657,-500.0,0.00013698,2]
[333275704,1722015040667,-512.64,0.00013698,2]
[333275705,1722015040676,-500.0,0.00013698,2]
[333275706,1722015040686,-630.61875871,0.00013698,2]
[333275707,1722015040695,-505.39149835,0.00013698,2]
[333275708,1722015040705,-500.0,0.00013698,2]
[333275709,1722015040714,-504.45439226,0.00013698,2]
[333275710,1722015040723,-500.0,0.00013698,2]
[333275711,1722015040733,-500.0,0.00013698,2]
[333275712,1722015040742,-500.0,0.00013698,2]
[333275713,1722015040752,-500.0,0.00013698,2]
[333275714,1722015040761,-500.0,0.00013698,2]
[333275715,1722015040771,-500.0,0.00013698,2]
[333275716,1722015040781,-500.0,0.00013698,2]
[333275717,1722015040790,-500.0,0.00013698,2]
[333275718,1722015040800,-500.0,0.00013698,2]
[333275719,1722015040809,-507.10437537,0.00013698,2]
[333275720,1722015040818,-550.75,0.00013698,2]
[333275721,1722015040828,-500.0,0.00013698,2]
[333275722,1722015040837,-500.0,0.00013698,2]
[333275723,1722015040853,-592.86738694,0.00013698,2]
[333275724,1722015040862,-500.0,0.00013698,2]
[333275725,1722015040871,-500.0,0.00013698,2]
[333275726,1722015040883,-500.0,0.00013698,2]
[333275727,1722015040892,-500.0,0.00013698,2]
[333275728,1722015040901,-500.0,0.00013698,2]
[333275729,1722015040910,-500.0,0.00013698,2]
[333275730,1722015040920,-500.0,0.00013698,2]
[333275731,1722015040929,-500.0,0.00013698,2]
[333275732,1722015040939,-500.0,0.00013698,2]
[333275733,1722015040948,-500.0,0.00013698,2]
[333275734,1722015040957,-500.0,0.00013698,2]
[333275735,1722015040967,-500.0,0.00013698,2]
[333275736,1722015040977,-531.48248053,0.00013698,2]
[333275737,1722015040986,-500.0,0.00013698,2]
[333275738,1722015040996,-500.0,0.00013698,2]
[333275739,1722015041005,-500.0,0.00013698,2]
[333275740,1722015041015,-501.10551533,0.00013698,2]
[333275741,1722015041028,-506.86964681,0.00013698,2]
[333275742,1722015041038,-502.77452337,0.00013698,2]
[333275743,1722015041047,-500.0,0.00013698,2]
[333275744,1722015041058,-506.38197011,0.00013698,2]
[333275745,1722015041067,-517.0852034,0.00013698,2]
[333275746,1722015041077,-500.0,0.00013698,2]
[333275747,1722015041086,-500.0,0.00013698,2]
[333275748,1722015041100,-534.68855558,0.00013698,2]
[333275749,1722015041111,-542.6,0.00013698,2]
[333275750,1722015041120,-503.88218785,0.00013698,2]
[333275751,1722015041130,-505.87563239,0.00013698,2]
[333275752,1722015041139,-500.0,0.00013698,2]
[333275753,1722015041148,-500.0,0.00013698,2]
[333275754,1722015041158,-502.04888662,0.00013698,2]
[333275755,1722015041167,-500.0,0.00013698,2]
[333275756,1722015041176,-500.0,0.00013698,2]
[333275757,1722015041186,-501.2481524,0.00013698,2]
[333275758,1722015041195,-500.0,0.00013698,2]
[333275759,1722015041204,-505.92248402,0.00013698,2]
[333275760,1722015041213,-500.0,0.00013698,2]
[333275761,1722015041223,-505.47502758,0.00013698,2]
[333275762,1722015041232,-418.13430852,0.00013698,2]
[333275763,1722015041241,-500.0,0.00013698,2]
[333275764,1722015041251,-500.0,0.00013698,2]
[333275765,1722015041260,-500.0,0.00013698,2]
[333275766,1722015041269,-3067.07,0.00013698,2]
[333275767,1722015041279,-3067.07,0.00013698,2]
[333275768,1722015041288,-3067.07,0.00013698,2]
[333275769,1722015041298,-3067.07,0.00013698,2]